bitfinex/quotes_ETHUSD_20250413
["timestamp","ask_amount","ask_price","bid_price","bid_amount"]
[1744575151642,1.1055,1605.9,1605.7,6.22777]
[1744575151643,7.2755,1605.9,1605.7,6.22777]
[1744575151855,7.2755,1605.9,1605.8,0.32521228]
[1744575151856,13.50254,1605.9,1605.8,0.32521228]
[1744575152136,12.45508,1605.8,1605.4,12.52019789]
[1744575152299,6.17,1605.7,1605.4,12.45792]
[1744575152523,6.17,1605.7,1605.5,0.25386978]
[1744575152921,6.17,1605.7,1605.6,0.25386978]
[1744575153644,13.76487175,1605.7,1605.6,0.39315422]
[1744575155330,14.87037175,1605.7,1605.6,0.39315422]
[1744575157259,7.2755,1605.7,1605.6,0.39315422]
[1744575157933,6.17,1605.7,1605.6,6.62135422]
[1744575158657,6.17,1605.7,1605.6,6.68362947]
[1744575159060,7.1945,1606.2,1606.0,6.22648]
[1744575159260,6.17,1606.2,1606.0,12.45301]
[1744575159459,6.17,1606.2,1606.1,0.25386978]
[1744575159960,6.17,1606.4,1606.1,6.48012978]
[1744575160544,6.17,1606.4,1606.2,0.25386978]
[1744575160947,7.409477,1606.4,1606.2,0.25386978]
[1744575161153,12.39536,1606.4,1606.2,0.25386978]
[1744575161365,12.39536,1606.4,1606.1,0.25386978]
[1744575161530,6.17,1606.4,1606.1,6.48006978]
[1744575161735,6.17,1606.4,1606.2,6.47963978]
[1744575162071,6.17,1606.5,1606.4,6.22509]
[1744575162367,7.1945,1606.6,1606.4,6.47895978]
[1744575162557,7.1945,1606.6,1606.4,6.47876978]
[1744575162757,6.17,1606.6,1606.4,6.47876978]
[1744575162951,6.17,1606.6,1606.5,0.25386978]
[1744575163462,6.17,1606.8,1606.6,6.22417]
[1744575163673,6.17,1606.9,1606.7,6.22393]
[1744575163969,6.17,1606.9,1606.7,6.2238]
[1744575164171,6.17,1606.9,1606.8,6.22354]
[1744575164733,19.6361,1607.2,1606.8,12.44691]
[1744575164937,13.41391,1607.2,1606.8,12.44691]
[1744575165338,7.1919,1607.2,1606.9,6.2231]
[1744575165538,7.1919,1607.2,1606.8,6.68365243]
[1744575165539,6.17,1607.2,1606.8,6.68365243]
[1744575165744,6.17,1607.2,1607.0,6.2226]
[1744575165969,6.17,1607.2,1606.7,6.2236]
[1744575165970,6.22269,1607.1,1606.7,6.2236]
[1744575166170,6.17,1607.2,1606.6,16.53029]
[1744575166351,12.44621,1607.0,1606.6,22.75449]
[1744575166866,6.22307,1607.0,1606.6,22.75449]
[1744575167072,6.22299,1607.0,1606.6,22.75449]
[1744575167272,6.22299,1607.0,1606.7,6.22393]
[1744575167449,7.86134,1607.1,1606.7,12.4477]
[1744575167651,1.6389,1607.1,1606.6,6.22427]
[1744575167858,6.22289,1607.0,1606.6,12.44854]
[1744575168273,6.22289,1607.0,1606.7,6.22391]
[1744575168468,7.86136,1607.1,1606.7,6.22375]
[1744575168675,7.86136,1607.1,1606.7,12.44752]
[1744575168972,1.0219,1607.1,1606.8,6.22341]
[1744575169176,6.17,1607.2,1606.9,6.28525983]
[1744575169338,6.22278,1607.0,1606.5,6.22464]
[1744575169543,6.22285,1607.0,1606.6,6.22425]
[1744575169986,6.22319,1606.9,1606.6,6.22425]
[1744575170165,6.22319,1606.9,1606.6,7.53137733]
[1744575170368,6.22319,1606.9,1606.6,13.75555733]
[1744575170670,6.22285,1607.0,1606.6,13.693322]
[1744575170987,12.44581,1607.0,1606.6,13.693322]
[1744575171171,12.44581,1607.0,1606.6,6.22418]
[1744575171342,6.22319,1606.9,1606.6,6.22418]
[1744575172587,6.22372,1606.8,1606.4,16.52804]
[1744575172792,13.45387,1606.7,1606.4,10.303]
[1744575173095,6.22503,1606.5,1606.1,6.22609]
[1744575173254,6.22551,1606.3,1606.0,6.22659]
[1744575173443,7.1754,1606.3,1605.8,5.33758518]
[1744575173843,7.1754,1606.3,1606.0,6.22647]
[1744575174082,13.40104,1606.3,1606.0,6.22647]
[1744575174290,13.40104,1606.3,1605.7,6.22779]
[1744575174291,6.22587,1606.2,1605.7,6.22766]
[1744575174585,6.22639,1606.1,1605.7,12.45527]
[1744575174782,6.22587,1606.2,1605.8,6.2272]
[1744575174948,12.4521,1606.2,1605.8,6.2272]
[1744575175166,6.22587,1606.2,1605.8,6.2272]
[1744575175702,12.4521,1606.2,1605.8,6.2272]
[1744575175908,14.0792544,1606.3,1605.8,6.22742]
[1744575176059,7.1754,1606.3,1606.1,6.22609]
[1744575176263,6.17,1606.3,1606.1,6.22609]
[1744575176473,12.39568,1606.3,1605.9,6.22689]
[1744575176684,18.62154,1606.3,1605.9,6.22689]
[1744575177089,12.39568,1606.3,1606.0,6.22658]
[1744575177303,6.17,1606.3,1606.1,6.22614]
[1744575177491,6.17,1606.3,1606.2,6.22587]
[1744575179694,6.17,1606.3,1606.2,6.28812122]
[1744575180064,6.17,1606.3,1606.2,6.54032321]
[1744575180516,6.17,1606.3,1606.2,9.73476695]
[1744575180681,6.17,1606.3,1606.2,11.85865162]
[1744575180881,6.17,1606.3,1606.2,6.67251573]
[1744575181173,6.17,1606.3,1606.2,0.44664573]
[1744575181393,6.17,1606.3,1606.2,0.25220199]
[1744575181593,6.17,1606.3,1606.0,12.45328]
[1744575181817,6.22579,1606.3,1605.9,6.22701]
[1744575182115,6.848759,1606.2,1605.8,16.52928]
[1744575182281,6.22618,1606.2,1605.8,16.52928]
[1744575182662,6.22618,1606.2,1605.8,16.52923]
[1744575182866,13.43566,1606.4,1606.0,6.22645]
[1744575183212,6.22553,1606.3,1606.0,6.22645]
[1744575183907,12.45121,1606.3,1605.9,12.45406]
[1744575184112,14.417371,1606.3,1605.9,12.45406]
[1744575184482,8.191691,1606.3,1605.9,12.45406]
[1744575184713,14.417371,1606.3,1605.9,12.45406]
[1744575185004,14.417371,1606.3,1605.9,6.22703]
[1744575185381,6.22587,1606.2,1605.9,6.22703]
[1744575185608,7.6676261,1606.2,1605.9,6.22703]
[1744575186410,6.17,1606.7,1605.8,10.302]
[1744575186585,6.17,1606.8,1606.4,6.22505]
[1744575186907,6.17,1606.8,1606.5,0.06224507]
[1744575187116,1.0404,1606.9,1606.8,6.22354]
[1744575187317,13.43293,1607.1,1606.8,6.22354]
[1744575187611,15.398445,1607.1,1606.7,12.44757]
[1744575187769,15.398445,1607.1,1606.8,6.22352]
[1744575187770,9.175915,1607.1,1606.8,6.22352]
[1744575187971,6.22303,1607.0,1606.6,6.22431]
[1744575188199,9.175915,1607.1,1606.5,6.22467]
[1744575188510,9.175915,1607.1,1606.4,6.22492]
[1744575188511,7.26397,1606.8,1606.4,6.22492]
[1744575188711,7.2104,1606.8,1606.5,6.41890572]
[1744575188870,7.2104,1606.8,1606.6,6.22397]
[1744575189072,7.2104,1606.8,1606.6,12.4481]
[1744575189905,7.2104,1606.8,1606.6,6.22397]
[1744575190921,7.2104,1606.8,1606.6,12.44814]
[1744575191707,7.2104,1606.8,1606.7,0.19443305]
[1744575192816,7.2104,1606.8,1606.6,12.44813]
[1744575193859,7.2104,1606.8,1606.6,6.22397]
[1744575193860,6.17,1606.8,1606.6,6.22397]
[1744575194128,1.0542,1607.1,1606.8,6.2234]
[1744575194283,1.0542,1607.1,1606.7,0.25301167]
[1744575194620,1.0542,1607.1,1607.0,6.22277]
[1744575195308,1.0542,1607.1,1606.9,6.22314]
[1744575195484,1.0542,1607.1,1606.9,12.44618]
[1744575195917,1.0542,1607.1,1607.0,6.22277]
[1744575196116,6.17,1607.2,1607.1,6.22238]
[1744575196321,6.17,1607.2,1607.0,6.22261]
[1744575197123,6.17,1607.2,1607.1,6.22238]
[1744575197443,6.17,1607.2,1607.0,6.22261]
[1744575198137,6.17,1607.2,1607.0,12.44522]
[1744575198291,6.17,1607.2,1607.0,12.44523]
[1744575199205,6.17,1607.2,1606.9,6.22308]
[1744575199405,19.66784,1607.3,1606.9,6.22301]
[1744575199617,21.636624,1607.3,1606.9,6.22301]
[1744575199926,12.4445,1607.2,1606.8,6.22347]
[1744575200099,6.22212,1607.2,1606.8,6.22347]
[1744575200828,21.636534,1607.3,1606.9,12.44617]
[1744575201007,7.2242,1607.3,1607.0,6.22247]
[1744575201501,13.44595,1607.3,1606.9,6.28523535]
[1744575201708,7.2242,1607.3,1606.9,0.06222535]
[1744575202024,13.44585,1607.3,1607.0,6.22268]
[1744575202233,13.44585,1607.3,1607.0,6.22266]
[1744575202536,7.2242,1607.3,1607.1,6.22226]
[1744575202703,7.2242,1607.3,1607.0,12.44528]
[1744575202911,7.2242,1607.3,1607.0,6.22264]
[1744575203226,14.42708402,1607.3,1607.0,6.22264]
[1744575203734,8.20547402,1607.3,1606.8,6.22347]
[1744575203932,6.22256,1607.1,1606.8,6.22347]
[1744575204132,12.44514,1607.1,1606.8,6.22347]
[1744575204328,6.22303,1607.0,1606.7,6.22383]
[1744575204528,12.44609,1607.0,1606.7,6.22383]
[1744575204831,6.17,1606.9,1606.8,6.22354]
[1744575205609,6.17,1606.9,1606.8,0.2526948]
[1744575205803,6.17,1606.9,1606.8,6.4762348]
[1744575206443,6.17,1606.9,1606.8,0.2526948]
[1744575206620,6.17,1606.9,1606.8,6.4762348]
[1744575207022,6.17,1606.9,1606.8,6.22354]
[1744575207407,6.17,1606.9,1606.8,6.41795449]
[1744575207845,6.17,1606.9,1606.8,6.67076076]
[1744575208048,13.40616,1607.2,1606.9,6.22314]
[1744575208252,21.6892834,1607.2,1606.9,6.22314]
[1744575208846,15.4670734,1607.2,1606.9,6.22314]
[1744575209050,21.6892534,1607.2,1606.9,6.22314]
[1744575209350,7.1841,1607.2,1607.0,6.22264]
[1744575209722,6.17,1607.2,1607.1,6.28459977]
[1744575209921,0.02,1607.4,1607.3,6.22161]
[1744575210455,0.02,1607.4,1607.3,6.66873202]
[1744575211931,0.02,1607.4,1607.3,6.73093587]
[1744575212132,0.02,1607.4,1607.3,8.02621146]
[1744575216365,0.4016546,1608.0,1607.9,6.21929]
[1744575216556,0.4016546,1608.0,1607.9,6.47582618]
[1744575217079,4.6e-06,1608.0,1607.9,6.72858207]
[1744575217288,3.11e-06,1608.1,1608.0,6.7689]
[1744575217438,3.11e-06,1608.1,1608.0,6.83106014]
[1744575217639,3.11e-06,1608.1,1608.0,6.7689]
[1744575217955,3.11e-06,1608.1,1608.0,7.21567697]
[1744575219037,3.11e-06,1608.1,1608.0,6.66567697]
[1744575219261,3.11e-06,1608.1,1608.0,8.59217934]
[1744575220229,3.11e-06,1608.1,1608.0,9.14217934]
[1744575220563,3.11e-06,1608.1,1608.0,8.53001604]
[1744575220783,3.11e-06,1608.1,1608.0,22.24313318]
[1744575221072,3.11e-06,1608.1,1608.0,19.24313318]
[1744575221487,3.11e-06,1608.1,1608.0,6.66567697]
[1744575221689,3.11e-06,1608.1,1608.0,0.25241978]
[1744575221895,3.11e-06,1608.1,1607.9,12.43845]
[1744575222096,3.11e-06,1608.1,1607.9,6.21916]
[1744575222301,3.11e-06,1608.1,1607.8,6.21962]
[1744575222598,6.21855311,1608.1,1607.7,10.193]
[1744575222779,6.17000311,1608.1,1607.6,59.57744]
[1744575222955,6.17000311,1608.1,1607.9,6.21911]
[1744575223771,6.17000311,1608.1,1608.0,6.2189]
[1744575224091,6.17000311,1608.1,1607.8,12.4393]
[1744575224312,6.17000311,1608.1,1607.8,13.68323]
[1744575224468,6.17000311,1608.1,1607.9,6.21929]
[1744575225796,6.17000311,1608.1,1607.8,13.68306]
[1744575226298,6.17000311,1608.1,1607.8,7.46341]
[1744575226498,6.17000311,1608.1,1607.8,13.68292]
[1744575226800,6.17000311,1608.1,1607.8,7.46341]
[1744575227311,6.17000311,1608.1,1607.9,7.02782067]
[1744575227599,3.11e-06,1608.1,1608.0,6.2189]
[1744575227897,3.11e-06,1608.1,1608.0,6.47058016]
[1744575228055,3.11e-06,1608.1,1608.0,6.53275053]
[1744575228257,3.11e-06,1608.1,1608.0,6.98735249]
[1744575228460,3.11e-06,1608.1,1608.0,12.40185084]
[1744575228673,3.11e-06,1608.1,1608.0,13.14605612]
[1744575229002,3.11e-06,1608.1,1608.0,12.53388575]
[1744575229166,3.11e-06,1608.1,1608.0,13.08388575]
[1744575229359,0.9981,1609.2,1608.8,6.21556]
[1744575229594,0.9981,1609.2,1608.8,6.837116]
[1744575229905,0.9981,1609.2,1608.9,6.21535]
[1744575230059,0.9981,1609.2,1608.9,6.27749723]
[1744575230654,6.21479,1609.1,1608.8,0.621556]
[1744575230895,7.21238,1609.2,1608.8,0.06214802]
[1744575231106,7.21238,1609.2,1608.8,6.27773802]
[1744575231382,0.9981,1609.2,1608.9,6.21518]
[1744575231604,0.9981,1609.2,1608.9,12.43039]
[1744575231825,0.9981,1609.2,1608.9,6.21518]
[1744575232988,6.21505,1609.0,1608.7,0.06214496]
[1744575233202,6.21505,1609.0,1608.6,6.27856695]
[1744575233520,7.21981,1609.1,1608.7,6.21616]
[1744575234020,6.17,1609.3,1609.0,6.21487]
[1744575234237,7.1951,1609.4,1609.1,6.27658801]
[1744575234387,6.19,1609.4,1609.3,6.21388]
[1744575234593,0.02,1609.4,1609.3,6.27601176]
[1744575234798,0.4016546,1609.6,1609.5,6.2131]
[1744575234977,4.6e-06,1609.6,1609.5,7.10330809]
[1744575235177,4.6e-06,1609.6,1609.5,20.54202145]
[1744575235920,4.6e-06,1609.6,1609.5,17.73616931]
[1744575236433,0.02,1610.4,1610.3,6.21002]
[1744575236599,0.02,1610.4,1610.1,12.42133]
[1744575236794,0.02,1610.4,1610.3,6.21002]
[1744575237484,1.0251,1610.4,1610.0,10.188]
[1744575237684,1.0251,1610.4,1609.8,6.21168]
[1744575237909,6.21018,1610.3,1609.9,6.21141]
[1744575238230,13.188,1611.0,1609.9,6.21141]
[1744575238231,0.3239421,1612.1,1611.5,6.20535]
[1744575238386,0.02,1612.4,1612.0,6.20347]
[1744575238579,0.749273,1612.4,1612.1,6.20289]
[1744575238779,0.02,1612.4,1612.0,6.20323]
[1744575239083,0.02,1612.4,1612.2,6.20248]
[1744575239334,0.02,1612.4,1612.3,6.20231]
[1744575239481,2.74e-06,1612.9,1612.4,3.0]
[1744575239826,1.6e-07,1613.3,1613.1,6.19924]
[1744575240028,1.6e-07,1613.4,1613.3,14.83418032]
[1744575240266,12.79623291,1613.6,1613.5,9.1977]
[1744575240534,12.79623291,1613.6,1613.5,6.67159458]
[1744575240682,12.79623291,1613.6,1613.5,6.1977]
[1744575240887,12.79623291,1613.6,1613.5,0.46506367]
[1744575241115,14.0758562,1613.6,1613.3,0.19354785]
[1744575241525,14.0758562,1613.6,1612.8,5.08571032]
[1744575241526,1.27962329,1613.6,1613.2,6.19885]
[1744575241719,10.4725958,1614.1,1612.8,8.08571032]
[1744575242025,16.6682458,1614.1,1613.3,6.19828]
[1744575242230,16.6682458,1614.1,1612.8,8.63571032]
[1744575242231,6.19789,1613.5,1612.8,11.28606032]
[1744575242444,0.2975958,1614.1,1613.6,6.19708]
[1744575242728,0.2975958,1614.1,1614.0,6.19578]
[1744575242943,8.51e-06,1614.2,1614.1,6.1954]
[1744575243103,8.51e-06,1614.2,1614.1,6.25732683]
[1744575243302,8.51e-06,1614.4,1614.3,6.74463]
[1744575243805,8.51e-06,1614.4,1614.3,11.28034032]
[1744575244011,8.51e-06,1614.4,1614.3,11.83034032]
[1744575244228,0.02,1615.4,1614.3,11.83034032]
[1744575244229,0.02,1615.4,1614.4,0.55]
[1744575244397,0.4162708,1615.8,1615.1,5.08571032]
[1744575244850,6.18965,1615.6,1614.4,6.19392]
[1744575244997,7.21891,1614.9,1614.2,6.19501]
[1744575245197,1.0264,1614.9,1614.3,5.14763858]
[1744575245431,6.19311,1614.7,1614.2,6.59227554]
[1744575245649,6.19265,1614.9,1614.2,12.78721554]
[1744575245943,6.19265,1614.9,1614.3,6.19462]
[1744575246141,6.19162,1615.1,1614.4,4.0025949]
[1744575246341,6.19386,1614.5,1614.4,3.43972998]
[1744575246642,6.19386,1614.5,1614.4,3.11725529]
[1744575246840,6.1955,1614.1,1613.9,5.20337338]
[1744575246999,1.239052,1614.1,1613.9,5.20337338]
[1744575247196,17.38353,1614.5,1613.9,5.20337338]
[1744575247428,6.19551,1614.1,1613.5,6.19758]
[1744575247644,6.19575,1614.1,1613.6,0.06195518]
[1744575247845,6.19662,1613.8,1613.3,6.19846]
[1744575248046,12.39062,1614.2,1613.6,6.19711]
[1744575248218,6.19579,1614.0,1613.5,6.19764]
[1744575248417,6.19677,1613.8,1613.2,6.19868]
[1744575248745,7.434662,1614.1,1613.5,6.19749]
[1744575248943,7.434662,1614.1,1613.6,6.1973]
[1744575249145,13.630362,1614.1,1613.5,6.19749]
[1744575249350,1.1186,1613.9,1613.1,5.10571032]
[1744575249498,13.163,1614.5,1613.3,6.19847]
[1744575249699,6.19463,1614.3,1613.1,5.21891032]
[1744575249903,9.19425,1614.4,1613.2,0.06196671]
[1744575249904,6.19682,1613.8,1613.2,0.06196671]
[1744575250139,6.19735,1613.6,1613.1,5.21891032]
[1744575250454,0.2,1614.5,1613.3,6.19817]
[1744575250659,6.18947,1615.7,1615.1,6.19155]
[1744575250815,6.18773,1616.1,1615.4,6.1903]
[1744575251145,0.02,1616.4,1615.4,6.1903]
[1744575251146,6.18726,1616.3,1615.7,6.18926]
[1744575251329,6.18934,1615.7,1614.8,0.1132]
[1744575251559,6.19098,1615.3,1614.4,6.30745]
[1744575251847,6.19064,1615.4,1614.4,3.57621342]
[1744575252047,10.365,1615.7,1614.3,53.165]
[1744575252048,6.19296,1614.8,1614.3,53.165]
[1744575252346,6.19496,1614.3,1613.7,6.30998]
[1744575252649,6.19658,1613.8,1613.3,16.6765]
[1744575252861,6.1968,1613.8,1613.1,6.21908]
[1744575253028,1.1186,1613.9,1613.2,6.19885]
[1744575253212,6.197,1613.7,1613.1,6.21908]
[1744575253550,6.07361846,1613.6,1613.3,9.13369359]
[1744575253749,1.1186,1613.9,1613.4,0.06197526]
[1744575254064,1.1236,1613.9,1613.3,9.13369359]
[1744575254255,6.19709,1613.7,1613.3,9.13369359]
[1744575254408,6.19768,1613.6,1613.3,9.13369359]
[1744575254605,6.817628,1613.5,1613.3,9.13369359]
[1744575254838,6.19809,1613.4,1613.3,9.13369359]
[1744575255018,7.31669,1613.4,1613.3,8.49148075]
[1744575255220,6.19885,1613.2,1613.1,0.02]
[1744575255658,6.20093,1612.7,1612.2,6.20269]
[1744575255958,6.20093,1612.7,1612.1,0.02]
[1744575255959,6.2024,1612.3,1612.1,0.02]
[1744575256254,6.2027,1612.2,1612.1,0.02]
[1744575256601,7.44321,1612.2,1612.1,0.02]
[1744575256805,8.56181,1612.2,1611.7,6.20444]
[1744575257061,6.20354,1612.0,1611.1,6.36003]
[1744575257354,6.20584,1611.4,1611.1,0.02]
[1744575257658,6.20655,1611.2,1611.1,0.02]
[1744575257826,7.559682,1611.2,1611.1,0.02]
[1744575258154,6.20732,1611.0,1610.9,5.14973388]
[1744575259280,6.20821,1610.8,1610.6,6.338134]
[1744575259482,6.20848,1610.7,1610.6,6.338134]
[1744575259775,6.20821,1610.8,1610.0,10.70377175]
[1744575259776,6.209,1610.6,1610.0,0.621141]
[1744575259938,6.2099,1610.4,1609.8,6.21166]
[1744575260130,11.4866,1610.9,1609.9,6.21128]
[1744575260331,12.4199,1610.4,1609.9,6.21128]
[1744575260567,4.14866,1610.8,1609.9,0.06210635]
[1744575260778,1.14866,1610.8,1610.0,6.21082]
[1744575260941,6.20987,1610.4,1609.9,6.21156]
[1744575261268,6.20964,1610.4,1609.9,6.21146]
[1744575261427,11.4866,1610.9,1609.7,0.1732]
[1744575261627,6.20985,1610.4,1609.9,6.21156]
[1744575262125,6.20985,1610.4,1609.8,6.21178]
[1744575262126,6.13362232,1610.4,1609.8,6.21178]
[1744575262369,6.21011,1610.3,1609.7,6.38526]
[1744575262569,6.21011,1610.3,1609.8,6.27376071]
[1744575262873,7.3607,1610.2,1609.6,0.06211071]
[1744575263046,7.3607,1610.2,1609.4,6.21346]
[1744575263228,7.3607,1610.2,1609.5,0.06212225]
[1744575263677,7.3607,1610.2,1609.7,6.21215]
[1744575263840,7.3607,1610.2,1609.5,6.27506225]
[1744575264043,7.3607,1610.2,1609.6,6.21246]
[1744575264552,1.1503,1610.2,1609.9,6.21134]
[1744575264928,1.1503,1610.2,1609.1,1.5845708]
[1744575264929,7.3607,1610.2,1609.1,1.5845708]
[1744575265272,10.3607,1610.2,1609.3,6.21385]
[1744575265477,6.21268,1609.7,1609.2,6.21404]
[1744575265648,6.21366,1609.4,1609.1,0.4362708]
[1744575265969,1.1503,1609.6,1609.1,0.4362708]
[1744575265970,13.57604,1609.6,1609.1,0.4362708]
[1744575266170,6.21317,1609.5,1609.1,0.4362708]
[1744575266476,10.377,1609.8,1609.1,7.32223812]
[1744575266677,6.213,1609.6,1609.1,7.32223812]
[1744575266852,6.21352,1609.4,1609.1,1.10758812]
[1744575267059,12.42655,1609.5,1609.1,0.4362708]
[1744575267259,6.21426,1609.2,1609.1,0.4362708]
[1744575267437,6.21323,1609.5,1609.1,0.4362708]
[1744575267631,6.2135,1609.4,1609.1,0.4362708]
[1744575267872,12.42824,1609.3,1609.1,0.4362708]
[1744575268035,6.21406,1609.3,1609.1,0.4362708]
[1744575269884,1.1268,1609.4,1609.1,0.4362708]
[1744575270085,7.34032,1609.4,1609.1,0.4362708]
[1744575270231,6.21394,1609.3,1609.1,0.4362708]
[1744575270957,6.21426,1609.2,1609.1,0.4362708]
[1744575271155,1.1268,1609.4,1609.1,0.4362708]
[1744575271325,16.59823,1609.3,1609.1,0.4362708]
[1744575271531,6.21426,1609.2,1609.1,0.4362708]
[1744575271780,6.21254,1609.7,1609.1,0.4362708]
[1744575271977,7.33891,1609.8,1609.3,6.21367]
[1744575272262,6.21253,1609.7,1609.2,6.21393]
[1744575272564,6.2129,1609.6,1609.2,6.87895008]
[1744575272771,12.42587,1609.6,1609.2,0.66502008]
[1744575272930,6.21272,1609.6,1609.1,0.4362708]
[1744575273130,6.21404,1609.3,1609.1,0.4362708]
[1744575273661,6.21426,1609.2,1609.1,0.4362708]
[1744575274231,1.0863,1609.2,1609.1,0.4362708]
[1744575274433,12.42808,1609.3,1609.1,0.4362708]
[1744575274633,6.21426,1609.2,1609.1,0.4362708]
[1744575275369,8.078494,1609.2,1609.1,0.4362708]
[1744575275530,6.21426,1609.2,1609.1,0.4362708]
[1744575276340,6.21404,1609.3,1609.1,0.4362708]
[1744575276545,6.21426,1609.2,1609.1,0.4362708]
[1744575277374,10.386,1609.4,1609.2,6.21426]
[1744575277687,16.59951,1609.4,1609.1,0.4362708]
[1744575277882,6.21426,1609.2,1609.1,0.4362708]
[1744575279258,16.59961,1609.4,1609.1,0.4362708]
[1744575279441,6.21403,1609.3,1609.1,0.4362708]
[1744575279642,6.21426,1609.2,1609.1,0.4362708]
[1744575280062,6.21403,1609.3,1609.1,0.4362708]
[1744575280261,10.386,1609.4,1609.1,0.4362708]
[1744575280573,6.21426,1609.2,1609.1,0.4362708]
[1744575282779,7.39896,1609.2,1609.1,0.4362708]
[1744575282985,6.21426,1609.2,1609.1,0.4362708]
[1744575283683,12.4281,1609.3,1609.1,0.4362708]
[1744575283839,6.21426,1609.2,1609.1,0.4362708]
[1744575284482,16.52426,1609.2,1609.1,0.4362708]
[1744575286343,16.52426,1609.2,1608.4,1.2226]
[1744575286344,1.1847,1609.1,1608.4,1.2226]
[1744575286545,6.21749,1608.4,1608.1,1.2426]
[1744575286745,6.21813,1608.2,1608.1,0.02]
[1744575287349,16.52913,1608.2,1608.1,0.02]
[1744575287549,17.71383,1608.2,1608.1,0.02]
[1744575287751,16.52913,1608.2,1608.1,0.02]
[1744575288590,16.52913,1608.2,1608.1,0.21432917]
[1744575288748,18.803829,1608.2,1608.1,0.21432917]
[1744575288945,21.803829,1608.2,1608.1,0.21432917]
[1744575289471,19.52913,1608.2,1608.1,0.21432917]
[1744575290370,20.71383,1608.2,1608.1,0.21432917]
[1744575290575,20.71383,1608.2,1608.1,0.02]
[1744575292013,6.22077,1607.6,1607.4,0.4162708]
[1744575292217,6.22083,1607.5,1607.4,0.4162708]
[1744575292572,6.22083,1607.5,1607.4,0.61063378]
[1744575292773,6.22083,1607.5,1607.4,0.85429993]
[1744575293172,6.22061,1607.6,1607.4,0.85429993]
[1744575293581,1.1847,1607.7,1607.4,0.61063378]
[1744575293902,6.21998,1607.8,1607.5,0.24347796]
[1744575294104,7.40368,1608.0,1607.6,0.19436298]
[1744575294274,6.22001,1607.8,1607.6,0.19436298]
[1744575294475,6.22006,1607.7,1607.6,0.19436298]
[1744575295369,17.78105,1607.7,1607.6,0.19436298]
[1744575295574,17.78105,1607.7,1607.4,0.4162708]
[1744575295575,6.22083,1607.5,1607.4,0.4162708]
[1744575298825,6.22083,1607.5,1607.4,0.1040677]
[1744575302510,6.22083,1607.5,1607.1,0.02]
[1744575302511,6.22195,1607.3,1607.1,0.02]
[1744575302707,6.21984,1607.8,1607.2,1.1913]
[1744575303061,6.21901,1608.0,1607.5,6.22068]
[1744575303236,6.22028,1607.7,1607.3,0.25105899]
[1744575303404,6.22116,1607.5,1607.3,0.25105899]
[1744575303732,6.22057,1607.6,1607.2,7.41318]
[1744575304028,6.22161,1607.3,1607.1,0.181415]
[1744575304828,12.44343,1607.3,1607.1,0.181415]
[1744575305231,6.22161,1607.3,1607.1,0.181415]
[1744575305939,6.222,1607.2,1607.1,0.181415]
[1744575306444,7.466361,1607.2,1607.1,0.181415]
[1744575307349,8.669861,1607.2,1607.1,0.181415]
[1744575307662,11.669861,1607.2,1607.1,0.181415]
[1744575307960,16.7781317,1607.2,1607.1,5e-06]
[1744575308134,12.44898,1606.6,1606.2,13.845044]
[1744575308315,6.2234,1606.9,1606.5,6.22457]
[1744575308515,6.77116,1607.5,1606.6,1.34344648]
[1744575308516,1.2803,1607.5,1606.6,1.34344648]
[1744575308757,6.3885707,1607.5,1606.7,0.25130611]
[1744575308935,12.6094107,1607.5,1606.8,6.41782159]
[1744575309119,12.44288,1607.4,1606.8,0.19442159]
[1744575309455,6.22168,1607.3,1606.9,6.22295]
[1744575309660,6.22168,1607.3,1606.9,6.47443301]
[1744575309818,6.22168,1607.3,1607.0,0.19442159]
[1744575310623,6.21957,1607.9,1607.2,6.222]
[1744575310941,7.49845,1608.2,1607.4,6.22119]
[1744575310942,6.21996,1607.8,1607.4,6.22119]
[1744575311150,7.49851,1608.2,1607.5,0.25181023]
[1744575311332,12.43903,1607.9,1607.5,6.47251023]
[1744575311662,6.2197,1607.8,1607.6,0.25181023]
[1744575311863,6.21951,1607.9,1607.6,0.25181023]
[1744575312073,6.21774,1608.3,1607.7,0.25181023]
[1744575312242,12.4373,1608.1,1607.7,6.66615182]
[1744575312434,6.21929,1607.9,1607.8,0.25181023]
[1744575312852,6.21967,1607.8,1607.3,1.2668]
[1744575313163,6.21975,1607.8,1607.3,7.48839]
[1744575313364,6.2181,1608.3,1607.8,6.21934]
[1744575313586,7.41914,1608.5,1608.0,1.2668]
[1744575313742,59.57516,1608.8,1608.0,1.2668]
[1744575313743,6.21581,1608.8,1608.0,1.2668]
[1744575313944,6.21802,1608.3,1608.1,0.19429476]
[1744575314151,6.21802,1608.3,1608.2,0.25283044]
[1744575314392,7.461573,1608.3,1608.2,0.25283044]
[1744575314672,6.21699,1608.5,1608.2,0.25283044]
[1744575314832,6.21702,1608.5,1608.2,1.51963044]
[1744575315032,12.43419,1608.5,1608.3,0.4471252]
[1744575315373,6.21702,1608.5,1608.4,0.25283044]
[1744575316241,7.460385,1608.5,1608.4,0.4471252]
[1744575316443,7.460385,1608.5,1608.4,0.19429476]
[1744575317275,12.43521,1608.4,1608.0,6.21871]
[1744575317574,7.41739,1608.9,1608.6,6.21641]
[1744575317575,6.21544,1608.9,1608.6,6.21641]
[1744575317868,6.21432,1609.2,1608.6,0.06216597]
[1744575318032,6.21401,1609.3,1608.9,6.21528]
[1744575318233,6.21519,1609.0,1608.7,0.19418024]
[1744575318560,6.2146,1609.2,1608.7,0.19418024]
[1744575318760,6.21481,1609.1,1608.9,1.2668]
[1744575318930,6.23354,1609.4,1608.9,1.2668]
[1744575319270,0.02,1609.4,1608.9,1.2668]
[1744575319471,0.02,1609.4,1609.1,6.21445]
[1744575319837,0.02,1609.4,1609.2,6.21407]